fUST/lending_fUST_20250609
["ID","MTS","AMOUNT","RATE_DAILY","PERIOD"]
[365055576,1749429049989,-151.0,0.00022191,7]
[365055577,1749429050006,-151.0,0.00022191,7]
[365055578,1749429050022,-151.0,0.00023,7]
[365055579,1749429050042,-151.0,0.00023098,7]
[365055580,1749429050056,-577.0870223,0.000233,7]
[365055581,1749429050079,-151.0,0.00023,7]
[365055582,1749429050096,-6630.3973726,0.000233,7]
[365055583,1749429050115,-151.0,0.000233,7]
[365055584,1749429050137,-1000.0,0.000233,2]
[365055585,1749429050155,-151.0,0.000233,7]
[365055586,1749429050168,-151.0,0.000233,7]
[365055587,1749429050181,-221.263539,0.000233,7]
[365055588,1749429050197,-151.0,0.000233,7]
[365055589,1749429050216,-151.0,0.000233,7]
[365055590,1749429050228,-151.0,0.000233,7]
[365055591,1749429050242,-151.0,0.000233,7]
[365055592,1749429050260,-162.893172,0.000233,7]
[365055593,1749429050272,-887.719557,0.000233,2]
[365055594,1749429050285,-887.719557,0.000233,2]
[365055595,1749429050300,-158474.89910748,0.000233,2]
[365055596,1749429050318,-177.054306,0.00023324,7]
[365055597,1749429050333,-1446.95699465,0.00023329,2]
[365055598,1749429050348,-2400.0,0.0002334,2]
[365055599,1749429050363,-368.34009461,0.00023383,9]
[365055600,1749429050376,-31002.30126067,0.000234,2]
[365055601,1749429050392,-73529.5808625,0.000234,2]
[365055602,1749429050407,-57020.47,0.000234,2]
[365055603,1749429050421,-151.0,0.000234,7]
[365055604,1749429050434,-151.0,0.000234,7]
[365055605,1749429050449,-5000.0,0.00023429,2]
[365055606,1749429050464,-1446.95699463,0.00023457,2]
[365055607,1749429050478,-2000.0,0.00023494,2]
[365055608,1749429050490,-47469.57400398,0.000235,2]
[365055609,1749429050501,-382.66831011,0.000235,2]
[365055610,1749429050510,-162.70720017,0.00023507,2]
[365055611,1749429050521,-368.34009461,0.00023521,9]
[365055612,1749429050530,-500.0,0.0002356,2]
[365055613,1749429050540,-500.0,0.0002356,2]
[365055614,1749429050551,-500.0,0.0002356,2]
[365055615,1749429050561,-440.0,0.00023561,4]
[365055616,1749429050571,-200.0,0.00023561,2]
[365055617,1749429050581,-200.0,0.00023561,2]
[365055618,1749429050592,-200.0,0.00023561,2]
[365055619,1749429050602,-1006.77,0.00023561,4]
[365055620,1749429050613,-440.0,0.00023561,4]
[365055621,1749429050623,-3446.99,0.00023561,4]
[365055622,1749429050635,-480.11,0.00023561,4]
[365055623,1749429050646,-440.0,0.00023561,4]
[365055624,1749429050656,-440.0,0.00023561,4]
[365055625,1749429050666,-440.0,0.00023561,4]
[365055626,1749429050676,-440.0,0.00023561,4]
[365055627,1749429050685,-440.0,0.00023561,4]
[365055628,1749429050695,-440.0,0.00023561,4]
[365055629,1749429050705,-440.0,0.00023561,4]
[365055630,1749429050715,-151.0,0.00023561,7]
[365055631,1749429050724,-1014.09,0.00023561,4]
[365055632,1749429050735,-440.0,0.00023561,4]
[365055633,1749429050745,-1607.03,0.00023561,4]
[365055634,1749429050755,-440.0,0.00023561,4]
[365055635,1749429050764,-151.0,0.00023561,7]
[365055636,1749429050774,-800.39,0.00023561,4]
[365055637,1749429050784,-151.0,0.00023561,7]
[365055638,1749429050794,-2439.69,0.00023561,4]
[365055639,1749429050804,-4225.36,0.00023561,4]
[365055640,1749429050814,-440.0,0.00023561,4]
[365055641,1749429051036,-151.0,0.00023561,7]
[365055642,1749429051052,-1753.67,0.00023561,4]
[365055643,1749429051062,-808.6,0.00023561,4]
[365055644,1749429051073,-440.0,0.00023561,4]
[365055645,1749429051083,-2885.52,0.00023561,4]
[365055646,1749429051093,-2797.34,0.00023561,4]
[365055647,1749429051103,-151.0,0.00023561,7]
[365055648,1749429051112,-1377.55,0.00023561,4]
[365055649,1749429051123,-445.140477,0.00023561,7]
[365055650,1749429051132,-687.36,0.00023561,4]
[365055651,1749429051143,-440.0,0.00023561,4]
[365055652,1749429051153,-445.140477,0.00023561,7]
[365055653,1749429051163,-440.0,0.00023561,4]
[365055654,1749429051173,-440.0,0.00023561,4]
[365055655,1749429051183,-1249.51,0.00023561,4]
[365055656,1749429051193,-440.0,0.00023561,4]
[365055657,1749429051203,-600.0,0.00023579,2]
[365055658,1749429051213,-1446.95699463,0.00023585,2]
[365055659,1749429051222,-963.0,0.00023602,2]
[365055660,1749429051233,-405.0,0.00023602,2]
[365055661,1749429051242,-2159.0,0.00023602,2]
[365055662,1749429051253,-368.34009461,0.00023659,9]
[365055663,1749429051263,-150.0,0.00023673,2]
[365055664,1749429051272,-162.96162866,0.00023699,2]
[365055665,1749429051282,-162.70720017,0.00023699,2]
[365055666,1749429051292,-160.73939315,0.00023699,2]
[365055667,1749429051301,-106608.72126161,0.00023699,2]
[365055668,1749429051313,-922.92620564,0.000237,2]
[365055669,1749429051323,-338454.50457004,0.000237,2]
[365055670,1749429051334,-151.0,0.000237,7]
[365055671,1749429051344,-151.0,0.000237,7]
[365055672,1749429051354,-155.66637711,0.00023711,2]
[365055673,1749429051363,-1446.95699463,0.00023714,2]
[365055674,1749429051373,-500.0,0.0002376,2]
[365055675,1749429051383,-68921.4151544,0.0002378,5]
[365055676,1749429051395,-999.55182448,0.00023788,2]
[365055677,1749429051404,-368.34009461,0.00023797,9]
[365055678,1749429051414,-291.37,0.000238,7]
[365055679,1749429051424,-921.29,0.000238,7]
[365055680,1749429051434,-221.353691,0.000238,7]
[365055681,1749429051443,-151.24807,0.000238,7]
[365055682,1749429051453,-151.0,0.000238,7]
[365055683,1749429051462,-151.0,0.000238,7]
[365055684,1749429051472,-151.0,0.000238,7]
[365055685,1749429051482,-151.0,0.000238,7]
[365055686,1749429051492,-1000.0,0.000238,2]
[365055687,1749429051502,-165.676855,0.000238,7]
[365055688,1749429051512,-165.676855,0.000238,7]
[365055689,1749429051522,-58132.95467638,0.000238,2]
[365055690,1749429051532,-6212.73994958,0.000238,3]
[365055696,1749430053418,196.438171,0.00013699,2]
[365055744,1749430232286,-181.82,0.00018223,2]
[365055746,1749430232296,-1101.33333334,0.000188,2]
[365055748,1749430232306,-345.13292786,0.000189,2]
[365055750,1749430232316,-1101.33333333,0.00018939,2]
[365055753,1749430232338,-1101.33333333,0.00019077,2]
[365055755,1749430232349,-300.0,0.00019177,2]
[365055757,1749430232360,-724.0,0.00019177,2]
[365055759,1749430232370,-307.65218454,0.00019178,2]
[365055761,1749430232380,-539.0,0.00019178,2]
[365055763,1749430232390,-346.62810943,0.00019178,2]
[365055765,1749430232401,-440.0,0.00019178,2]
[365055768,1749430232411,-263.18820567,0.00019299,2]
[365055770,1749430232423,-463.21,0.00019449,2]
[365055772,1749430232433,-440.0,0.00019449,2]
[365055774,1749430232443,-440.0,0.00019449,2]
[365055776,1749430232454,-841.9,0.00019449,2]
[365055778,1749430232463,-602.89,0.00019449,2]
[365055780,1749430232474,-997.04460842,0.00019449,2]
[365055789,1749430232531,-23.82539158,0.00019449,2]
[365055793,1749430232541,-962.15,0.00019449,2]
[365055827,1749430232732,-433.42061818,0.00019449,2]
[365056180,1749430238339,-6.57938182,0.00019449,2]
[365056181,1749430238350,-440.0,0.00019449,2]
[365056182,1749430238360,-440.0,0.00019449,2]
[365056183,1749430238371,-440.0,0.00019449,2]
[365056184,1749430238382,-506.96,0.00019449,2]
[365056185,1749430238393,-440.0,0.00019449,2]
[365056186,1749430238404,-440.0,0.0001945,2]
[365056187,1749430238415,-440.0,0.0001945,2]
[365056188,1749430238427,-440.0,0.0001945,2]
[365056189,1749430238437,-440.0,0.0001945,2]
[365056191,1749430238448,-440.0,0.0001945,2]
[365056192,1749430238459,-522.51,0.0001945,2]
[365056194,1749430238469,-440.0,0.0001945,2]
[365056195,1749430238481,-440.0,0.0001945,2]
[365056197,1749430238491,-440.0,0.0001945,2]
[365056199,1749430238502,-1331.43,0.0001945,2]
[365056201,1749430238512,-440.0,0.0001945,2]
[365056203,1749430238523,-440.0,0.0001945,2]
[365056205,1749430238533,-440.0,0.0001945,2]
[365056207,1749430238544,-477.51,0.0001945,2]
[365056208,1749430238555,-440.0,0.0001945,2]
[365056209,1749430238565,-440.0,0.0001945,2]
[365056210,1749430238576,-440.0,0.0001945,2]
[365056211,1749430238586,-440.0,0.0001945,2]
[365056212,1749430238596,-440.0,0.0001945,2]
[365056213,1749430238607,-440.0,0.0001945,2]
[365056214,1749430238618,-1068.17,0.0001945,2]
[365056215,1749430238628,-440.0,0.0001945,2]
[365056216,1749430238638,-440.0,0.0001945,2]
[365056217,1749430238649,-440.0,0.00019452,2]
[365056218,1749430238659,-155.66637711,0.00019623,2]
[365056219,1749430238669,-241.45,0.00019723,2]
[365056220,1749430238680,-440.0,0.00019723,2]
[365056221,1749430238691,-841.9,0.00019723,2]
[365056222,1749430238701,-602.89,0.00019723,2]
[365056223,1749430238711,-1020.87,0.00019723,2]
[365056224,1749430238722,-962.15,0.00019723,2]
[365056225,1749430238732,-440.0,0.00019723,2]
[365056226,1749430238743,-376.73,0.00019723,2]
[365056227,1749430238755,-440.0,0.00019723,2]
[365056228,1749430238765,-554.03,0.00019723,2]
[365056229,1749430238775,-506.96,0.00019723,2]
[365056230,1749430238785,-440.0,0.00019723,2]
[365056231,1749430238795,-440.0,0.00019724,2]
[365056232,1749430238806,-155.7,0.00019724,2]
[365056233,1749430238815,-440.0,0.00019724,2]
[365056234,1749430238824,-522.51,0.00019724,2]
[365056235,1749430238834,-440.0,0.00019724,2]
[365056236,1749430238843,-440.0,0.00019724,2]
[365056237,1749430238853,-440.0,0.00019724,2]
[365056238,1749430238862,-1331.43,0.00019724,2]
[365056239,1749430238872,-440.0,0.00019724,2]
[365056240,1749430238882,-440.0,0.00019724,2]
[365056241,1749430238891,-440.0,0.00019724,2]
[365056242,1749430238900,-477.51,0.00019724,2]
[365056243,1749430238910,-440.0,0.00019724,2]
[365056244,1749430238920,-440.0,0.00019724,2]
[365056245,1749430238930,-451.11,0.00019724,2]
[365056246,1749430238940,-440.0,0.00019724,2]
[365056247,1749430238949,-440.0,0.00019724,2]
[365056248,1749430238959,-440.0,0.00019724,2]
[365056249,1749430238969,-1068.17,0.00019724,2]
[365056250,1749430238979,-440.0,0.00019724,2]
[365056251,1749430238990,-440.0,0.00019724,2]
[365056252,1749430238999,-493.08,0.00019726,2]
[365056253,1749430239010,-363.64,0.0001988,2]
[365056254,1749430239020,-440.0,0.00019997,2]
[365056255,1749430239030,-841.9,0.00019997,2]
[365056256,1749430239039,-602.89,0.00019997,2]
[365056257,1749430239049,-1020.87,0.00019997,2]
[365056258,1749430239059,-962.15,0.00019997,2]
[365056259,1749430239068,-440.0,0.00019997,2]
[365056260,1749430239078,-506.96,0.00019997,2]
[365056261,1749430239087,-440.0,0.00019998,2]
[365056262,1749430239097,-440.0,0.00019998,2]
[365056263,1749430239110,-522.51,0.00019998,2]
[365056264,1749430239120,-440.0,0.00019998,2]
[365056265,1749430239130,-333.88,0.00019998,2]
[365056266,1749430239140,-1331.43,0.00019998,2]
[365056267,1749430239150,-440.0,0.00019998,2]
[365056268,1749430239160,-511.37883553,0.00019998,2]
[365056269,1749430239170,-440.0,0.00019998,2]
[365056270,1749430239180,-477.51,0.00019998,2]
[365056271,1749430239191,-440.0,0.00019998,2]
[365056272,1749430239201,-440.0,0.00019998,2]
[365056273,1749430239211,-440.0,0.00019998,2]
[365056274,1749430239222,-440.0,0.00019998,2]
[365056275,1749430239232,-440.0,0.00019998,2]
[365056276,1749430239242,-1068.17,0.00019998,2]
[365056277,1749430239252,-440.0,0.00019998,2]
[365056278,1749430239262,-185.725,0.0002013,2]
[365056279,1749430239271,-196.438171,0.00020187,2]
[365056280,1749430239281,-440.0,0.00020271,2]
[365056281,1749430239291,-841.9,0.00020271,2]
[365056282,1749430239300,-602.89,0.00020271,2]
[365056283,1749430239310,-1020.87,0.00020271,2]
[365056284,1749430239320,-962.15,0.00020271,2]
[365056285,1749430239330,-440.0,0.00020271,2]
[365056286,1749430239340,-506.96,0.00020271,2]
[365056287,1749430239350,-440.0,0.00020272,2]
[365056288,1749430239360,-440.0,0.00020272,2]
[365056289,1749430239371,-522.51,0.00020272,2]
[365056290,1749430239381,-440.0,0.00020272,2]
[365056291,1749430239391,-1331.43,0.00020272,2]
[365056292,1749430239401,-440.0,0.00020272,2]
[365056293,1749430239411,-440.0,0.00020272,2]
[365056294,1749430239421,-477.51,0.00020272,2]
[365056295,1749430239432,-440.0,0.00020272,2]
[365056296,1749430239442,-440.0,0.00020272,2]
[365056297,1749430239452,-440.0,0.00020272,2]
[365056298,1749430239461,-440.0,0.00020272,2]
[365056299,1749430239471,-1068.17,0.00020272,2]
[365056300,1749430239482,-440.0,0.00020272,2]
[365056301,1749430239492,-500.0,0.00020343,2]
[365056302,1749430239501,-238.00051914,0.00020343,2]
[365056303,1749430239512,-500.0,0.00020343,2]
[365056304,1749430239522,-500.0,0.00020343,2]
[365056305,1749430239532,-500.0,0.00020343,2]
[365056306,1749430239542,-245.42843129,0.00020343,2]
[365056307,1749430239552,-160.0,0.00020344,2]
[365056308,1749430239562,-842.5625,0.00020344,2]
[365056309,1749430239571,-213.05153702,0.00020344,2]
[365056310,1749430239582,-160.0,0.00020345,2]
[365056311,1749430239591,-423.98131849,0.00020345,2]
[365056312,1749430239601,-834.62475315,0.00020345,2]
[365056313,1749430239610,-229.60437222,0.00020345,2]
[365056314,1749430239620,-1753.0681411,0.00020423,2]
[365056315,1749430239630,-502.55203898,0.00020494,2]
[365056316,1749430239639,-500.0,0.00020495,2]
[365056317,1749430239649,-440.0,0.00020545,2]
[365056318,1749430239659,-841.9,0.00020545,2]
[365056319,1749430239668,-602.89,0.00020545,2]
[365056320,1749430239678,-1020.87,0.00020545,2]
[365056321,1749430239688,-962.15,0.00020545,2]
[365056322,1749430239697,-440.0,0.00020545,2]
[365056323,1749430239707,-506.96,0.00020545,2]
[365056324,1749430239717,-166.22499112,0.00020546,2]
[365056325,1749430239726,-492.76,0.00020546,2]
[365056326,1749430239737,-522.51,0.00020546,2]
[365056327,1749430239756,-240.78,0.00020546,2]
[365056328,1749430239766,-1331.43,0.00020546,2]
[365056329,1749430239775,-440.0,0.00020546,2]
[365056330,1749430239785,-440.0,0.00020546,2]
[365056331,1749430239794,-477.51,0.00020546,2]
[365056332,1749430239804,-440.0,0.00020546,2]
[365056333,1749430239813,-440.0,0.00020546,2]
[365056334,1749430239823,-440.0,0.00020546,2]
[365056335,1749430239833,-440.0,0.00020546,2]
[365056336,1749430239842,-1068.17,0.00020546,2]
[365056337,1749430239852,-440.0,0.00020546,2]
[365056339,1749430239862,-1100.0,0.00020765,2]
[365056341,1749430239871,-467.83,0.0002081,10]
[365056343,1749430239881,-389.86,0.0002081,10]
[365056345,1749430239891,-440.0,0.00020819,2]
[365056347,1749430239900,-841.9,0.00020819,2]
[365056349,1749430239910,-602.89,0.00020819,2]
[365056351,1749430239919,-1020.87,0.00020819,2]
[365056353,1749430239929,-962.15,0.00020819,2]
[365056355,1749430239939,-440.0,0.00020819,2]
[365056357,1749430239949,-506.96,0.00020819,2]
[365056359,1749430239959,-522.51,0.0002082,2]
[365056361,1749430239968,-1331.43,0.0002082,2]
[365056363,1749430239978,-440.0,0.0002082,2]
[365056365,1749430239987,-440.0,0.0002082,2]
[365056366,1749430239996,-477.51,0.0002082,2]
[365056367,1749430240006,-440.0,0.0002082,2]
[365056368,1749430240017,-440.0,0.0002082,2]
[365056369,1749430240026,-440.0,0.0002082,2]
[365056370,1749430240036,-440.0,0.0002082,2]
[365056371,1749430240046,-1068.17,0.0002082,2]
[365056372,1749430240055,-440.0,0.0002082,2]
[365056373,1749430240065,-420.0,0.00020899,2]
[365056374,1749430240074,-318.62,0.000209,2]
[365056375,1749430240084,-202.74427913,0.000209,4]
[365056376,1749430240094,-202.74427911,0.00021038,4]
[365056377,1749430240105,-1000.0,0.00021043,2]
[365056378,1749430240116,-324.89,0.00021083,10]
[365056379,1749430240125,-440.0,0.00021093,2]
[365056380,1749430240135,-841.9,0.00021093,2]
[365056381,1749430240146,-602.89,0.00021093,2]
[365056382,1749430240156,-1020.87,0.00021093,2]
[365056383,1749430240165,-962.15,0.00021093,2]
[365056384,1749430240175,-440.0,0.00021093,2]
[365056385,1749430240185,-506.96,0.00021093,2]
[365056386,1749430240195,-522.51,0.00021094,2]
[365056387,1749430240205,-1331.43,0.00021094,2]
[365056388,1749430240215,-440.0,0.00021094,2]
[365056389,1749430240225,-440.0,0.00021094,2]
[365056390,1749430240235,-477.51,0.00021094,2]
[365056391,1749430240247,-440.0,0.00021094,2]
[365056392,1749430240257,-440.0,0.00021094,2]
[365056393,1749430240267,-440.0,0.00021094,2]
[365056394,1749430240276,-440.0,0.00021094,2]
[365056395,1749430240286,-1068.17,0.00021094,2]
[365056396,1749430240297,-169.03,0.00021094,2]
[365056397,1749430240306,-202.74427911,0.00021176,4]
[365056398,1749430240316,-202.74427911,0.00021314,5]
[365056399,1749430240326,-440.0,0.00021367,2]
[365056401,1749430240336,-841.9,0.00021367,2]
[365056403,1749430240346,-602.89,0.00021367,2]
[365056405,1749430240356,-1020.87,0.00021367,2]
[365056407,1749430240366,-962.15,0.00021367,2]
[365056410,1749430240376,-440.0,0.00021367,2]
[365056412,1749430240386,-506.96,0.00021367,2]
[365056414,1749430240396,-522.51,0.00021368,2]
[365056416,1749430240406,-1331.43,0.00021368,2]
[365056418,1749430240416,-440.0,0.00021368,2]
[365056420,1749430240427,-440.0,0.00021368,2]
[365056422,1749430240437,-477.51,0.00021368,2]
[365056424,1749430240446,-440.0,0.00021368,2]
[365056426,1749430240457,-440.0,0.00021368,2]
[365056428,1749430240467,-440.0,0.00021368,2]
[365056430,1749430240478,-440.0,0.00021368,2]
[365056432,1749430240488,-1068.17,0.00021368,2]
[365056434,1749430240499,-202.74427911,0.00021452,5]
[365056437,1749430240509,-545.46,0.00021537,2]
[365056439,1749430240519,-202.74427911,0.0002159,5]
[365056440,1749430240529,-1083.68338218,0.00021591,2]
[365056441,1749430240539,-440.0,0.00021641,2]
[365056442,1749430240549,-841.9,0.00021641,2]
[365056443,1749430240560,-602.89,0.00021641,2]
[365056444,1749430240570,-1020.87,0.00021641,2]
[365056445,1749430240580,-962.15,0.00021641,2]
[365056446,1749430240590,-440.0,0.00021641,2]
[365056447,1749430240600,-506.96,0.00021641,2]
[365056448,1749430240610,-522.51,0.00021642,2]
[365056449,1749430240622,-1331.43,0.00021642,2]
[365056450,1749430240634,-440.0,0.00021642,2]
[365056451,1749430240644,-440.0,0.00021642,2]
[365056452,1749430240654,-477.51,0.00021642,2]
[365056453,1749430240663,-440.0,0.00021642,2]
[365056454,1749430240674,-440.0,0.00021642,2]
[365056455,1749430240683,-440.0,0.00021642,2]
[365056456,1749430240692,-440.0,0.00021642,2]
[365056457,1749430240701,-1068.17,0.00021642,2]
[365056458,1749430240710,-202.74427911,0.00021728,5]
[365056459,1749430240720,-1100.0,0.00021861,2]
[365056460,1749430240730,-202.74427911,0.00021866,6]
[365056461,1749430240740,-440.0,0.00021915,2]
[365056462,1749430240750,-841.9,0.00021915,2]
[365056463,1749430240760,-602.89,0.00021915,2]
[365056464,1749430240770,-1020.87,0.00021915,2]
[365056465,1749430240779,-962.15,0.00021915,2]
[365056466,1749430240791,-440.0,0.00021915,2]
[365056467,1749430240801,-506.96,0.00021915,2]
[365056468,1749430240811,-522.51,0.00021916,2]
[365056469,1749430240821,-1331.43,0.00021916,2]
[365056470,1749430240831,-440.0,0.00021916,2]
[365056471,1749430240842,-304.52,0.00021916,2]
[365056472,1749430240851,-477.51,0.00021916,2]
[365056473,1749430240861,-280.83,0.00021916,2]
[365056474,1749430240872,-440.0,0.00021916,2]
[365056475,1749430240881,-440.0,0.00021916,2]
[365056476,1749430240891,-440.0,0.00021916,2]
[365056477,1749430240902,-1068.17,0.00021916,2]
[365056478,1749430240912,-500.0,0.00021917,2]
[365056479,1749430240921,-500.0,0.00021917,2]
[365056480,1749430240931,-500.0,0.00021917,2]
[365056481,1749430240941,-500.0,0.00021917,2]
[365056482,1749430240950,-500.0,0.00021917,2]
[365056483,1749430240960,-500.0,0.00021917,2]
[365056484,1749430240969,-500.0,0.00021917,2]
[365056485,1749430240979,-570.15,0.00021917,2]
[365056486,1749430240989,-202.74427911,0.00022003,6]
[365056487,1749430240999,-202.74427911,0.00022141,6]
[365056488,1749430241009,-440.0,0.00022189,4]
[365056489,1749430241018,-841.9,0.00022189,4]
[365056490,1749430241028,-602.89,0.00022189,4]
[365056491,1749430241038,-1020.87,0.00022189,4]
[365056492,1749430241048,-962.15,0.00022189,4]
[365056493,1749430241059,-440.0,0.00022189,4]
[365056494,1749430241069,-506.96,0.00022189,4]
[365056495,1749430241079,-522.51,0.0002219,4]
[365056496,1749430241092,-1331.43,0.0002219,4]
[365056497,1749430241216,-440.0,0.0002219,4]
[365056498,1749430241227,-477.51,0.0002219,4]
[365056499,1749430241237,-440.0,0.0002219,4]
[365056500,1749430241248,-440.0,0.0002219,4]
[365056501,1749430241258,-440.0,0.0002219,4]
[365056502,1749430241269,-1068.17,0.0002219,4]
[365056503,1749430241279,-202.74427911,0.00022279,6]
[365056504,1749430241290,-318.62,0.000223,7]
[365056505,1749430241301,-202.74427911,0.00022417,7]
[365056506,1749430241311,-440.0,0.00022463,4]
[365056507,1749430241321,-841.9,0.00022463,4]
[365056508,1749430241331,-602.89,0.00022463,4]
[365056509,1749430241341,-1020.87,0.00022463,4]
[365056510,1749430241351,-962.15,0.00022463,4]
[365056511,1749430241361,-440.0,0.00022463,4]
[365056512,1749430241371,-506.96,0.00022463,4]
[365056514,1749430241382,-522.51,0.00022464,4]
[365056515,1749430241393,-1331.43,0.00022464,4]
[365056516,1749430241402,-440.0,0.00022464,4]
[365056517,1749430241412,-477.51,0.00022464,4]
[365056518,1749430241422,-440.0,0.00022464,4]
[365056519,1749430241433,-440.0,0.00022464,4]
[365056520,1749430241443,-440.0,0.00022464,4]
[365056521,1749430241453,-1068.17,0.00022464,4]
[365056522,1749430241463,-500.0,0.00022465,2]
[365056523,1749430241472,-202.74427911,0.00022555,7]
[365056524,1749430241482,-361.8828908,0.0002263,2]
[365056525,1749430241494,-202.74427911,0.00022693,7]
[365056526,1749430241503,-500.0,0.000227,2]
[365056527,1749430241514,-500.0,0.000227,2]
[365056528,1749430241524,-250.0,0.00022726,2]
[365056529,1749430241534,-440.0,0.00022737,4]
[365056530,1749430241543,-841.9,0.00022737,4]
[365056531,1749430241553,-602.89,0.00022737,4]
[365056532,1749430241563,-1020.87,0.00022737,4]
[365056533,1749430241574,-962.15,0.00022737,4]
[365056534,1749430241586,-440.0,0.00022737,4]
[365056535,1749430241595,-506.96,0.00022737,4]
[365056536,1749430241605,-522.51,0.00022738,4]
[365056537,1749430241615,-1331.43,0.00022738,4]
[365056538,1749430241625,-440.0,0.00022738,4]
[365056539,1749430241635,-477.51,0.00022738,4]
[365056540,1749430241644,-440.0,0.00022738,4]
[365056541,1749430241654,-440.0,0.00022738,4]
[365056542,1749430241663,-440.0,0.00022738,4]
[365056543,1749430241673,-1068.17,0.00022738,4]
[365056544,1749430241683,-587.0,0.00022776,2]
[365056545,1749430241693,-202.74427911,0.00022831,8]
[365056546,1749430241703,-500.0,0.00022881,2]
[365056547,1749430241713,-1750.456,0.00022881,2]
[365056548,1749430241723,-500.0,0.00022881,2]
[365056549,1749430241732,-5000.0,0.00022881,2]
[365056550,1749430241741,-500.0,0.00022881,2]
[365056551,1749430241751,-500.0,0.00022881,2]
[365056552,1749430241761,-207.4,0.00022881,2]
[365056553,1749430241770,-500.0,0.00022881,2]
[365056554,1749430241780,-500.0,0.00022881,2]
[365056555,1749430241790,-500.0,0.00022881,2]
[365056556,1749430241800,-500.0,0.00022881,2]
[365056557,1749430241809,-500.0,0.00022881,2]
[365056558,1749430241819,-500.0,0.00022881,2]
[365056559,1749430241829,-500.0,0.00022881,2]
[365056560,1749430241839,-500.0,0.00022881,2]
[365056561,1749430241849,-500.0,0.00022881,2]
[365056562,1749430241858,-500.0,0.00022881,2]
[365056563,1749430241868,-500.0,0.00022881,2]
[365056564,1749430241878,-158.6873432,0.00022904,2]
[365056565,1749430241887,-153.0,0.00022904,2]
[365056566,1749430241897,-153.0,0.00022904,2]
[365056567,1749430241907,-1100.0,0.00022957,2]
[365056568,1749430241917,-202.74427911,0.00022969,8]
[365056569,1749430241927,-322.74675667,0.00023011,4]
[365056570,1749430241937,-841.9,0.00023011,4]
[365056571,1749430241946,-602.89,0.00023011,4]
[365056572,1749430241956,-1020.87,0.00023011,4]
[365056573,1749430241966,-962.15,0.00023011,4]
[365056574,1749430241976,-219.05,0.00023011,4]
[365056575,1749430241987,-506.96,0.00023011,4]
[365056576,1749430241996,-522.51,0.00023012,4]
[365056577,1749430242006,-1331.43,0.00023012,4]
[365056578,1749430242017,-440.0,0.00023012,4]
[365056579,1749430242027,-477.51,0.00023012,4]
[365056580,1749430242037,-440.0,0.00023012,4]
[365056581,1749430242049,-440.0,0.00023012,4]
[365056582,1749430242058,-440.0,0.00023012,4]
[365056583,1749430242068,-1068.17,0.00023012,4]
[365056584,1749430242079,-500.0,0.00023013,2]
[365056585,1749430242088,-200.0,0.00023097,2]
[365056586,1749430242098,-202.74427911,0.00023107,8]